[Event "ESTCC U65 2018"]
[Site "Walbrzych"]
[Date "2018.04.20"]
[Round "7"]
[White "Sorensen, Bent"]
[Black "Hedin, Gunnar"]
[Result "1/2-1/2"]
[ECO "A04"]
[WhiteElo "2158"]
[BlackElo "2174"]
[Annotator "NA"]
[PlyCount "82"]
[EventDate "2018.??.??"]
[EventCountry "POL"]
[SourceTitle "playchess.com"]
[Source "ChessBase"]
[SourceQuality "1"]
[WhiteTeam "Denmark"]
[BlackTeam "Sweden"]
[WhiteTeamCountry "DEN"]
[BlackTeamCountry "SWE"]
[TimeControl "40/5400+30:1800+30"]

1. Nf3 {[%emt 0:00:00]} f5 {[%emt 0:00:24]} 2. b3 {[%emt 0:00:00]} Nf6 {[%emt 0:01:02]} 3. Bb2 {[%emt 0:00:00]} g6 {[%emt 0:00:18]} 4. e3 {[%emt 0:00:08] A04: Unusual lines after 1 Nf3 and King's Indian Attack} (4. Bxf6 exf6 5. c4 d5 6. cxd5 Qxd5 7. Nc3 Qa5 8. a3 c6 9. e3 Qc7 10. b4 Be6 11. g3 Nd7 {½-½ (52) Tkachiev,V (2644)-Mamedyarov,S (2726) Astana 2012}) 4... Bg7 {[%emt 0:00:18]} 5. d4 {[%emt 0:00:17]} O-O {[%emt 0:00:39]} 6. Nbd2 {[%emt 0:00:10]} d6 {[%emt 0:02:18]} 7. Bc4+ {[%emt 0:01:35]} e6 {[%emt 0:00:55]} 8. O-O {[%emt 0:01:03]} Nc6 {[%emt 0:01:56]} 9. a3 {[%emt 0:02:16]} Kh8 $146 {[%emt 0:04:37]} ({Predecessor:} 9... d5 10. Be2 {1-0 (45) Lamik,J (1780)-Kiraly,B (1308) Hungary 2013}) 10. b4 {[%emt 0:08:42]} a6 {[%emt 0:01:35]} 11. Rb1 {[%emt 0:04:23]} Qe7 {[%emt 0:03:31]} 12. b5 {[%emt 0:04:18]} ({White should try} 12. Re1 $11) 12... axb5 {[%emt 0:00:09]} 13. Bxb5 {[%emt 0:00:07]} Bd7 {[%emt 0:00:46]} 14. Qe2 {[%emt 0:03:10]} Rae8 {[%emt 0:47:16]} 15. Rfe1 {[%emt 0:13:29]} Nd8 {[%emt 0:05:57]} 16. a4 {[%emt 0:02:44]} Bc6 {[%emt 0:02:43]} 17. Ba3 {[%emt 0:02:30]} Ne4 {[%emt 0:02:21]} 18. Nxe4 {[%emt 0:13:05]} fxe4 {[%emt 0:00:25]} 19. Bxc6 {[%emt 0:00:13]} bxc6 {[%emt 0:01:53]} 20. Nd2 {[%emt 0:01:27]} e5 {[%emt 0:01:10]} 21. dxe5 {[%emt 0:09:10]} Bxe5 {[%emt 0:00:22]} 22. Nxe4 {[%emt 0:00:44]} Bxh2+ {[%emt 0:00:50]} 23. Kxh2 {[%emt 0:00:11]} Qxe4 {[%emt 0:00:20]} 24. Rb4 {[%emt 0:01:22]} Qd5 {[%emt 0:02:48]} 25. Kg1 {[%emt 0:04:27]} Ne6 {[%emt 0:00:35]} 26. Rd1 {[%emt 0:07:10]} Qf5 {[%emt 0:02:34]} 27. Rd2 {[%emt 0:03:42]} Kg8 {[%emt 0:01:29]} 28. Qc4 {[%emt 0:03:03]} c5 {[%emt 0:05:10]} 29. Rb7 {[%emt 0:00:12]} Qf7 {[%emt 0:00:58]} 30. Bb2 {[%emt 0:01:19]} h5 {[%emt 0:00:32]} 31. a5 {[%emt 0:01:09]} Kh7 {[%emt 0:00:33]} 32. a6 {[%emt 0:00:22]} Ra8 {[%emt 0:04:00]} 33. f3 {[%emt 0:03:29]} Nd8 {[%emt 0:02:04]} 34. Qb5 {[%emt 0:02:21]} Nxb7 {[%emt 0:00:32]} 35. axb7 {[%emt 0:00:06]} Rab8 {[%emt 0:00:10]} 36. e4 {[%emt 0:00:37]} Qe8 {[%emt 0:00:22]} 37. Qb3 {[%emt 0:00:20]} Qc6 {[%emt 0:01:02]} 38. Qe6 $1 {[%emt 0:02:13]} Qe8 {[%emt 0:00:57]} 39. Qb3 {[%emt 0:00:13]} Qc6 {[%emt 0:00:09]} 40. Qe6 {[%emt 0:00:00]} Qe8 $11 {[%emt 0:00:20]} 41. Qb3 {[%emt 0:00:27]} Qc6 1/2-1/2

[Event "ESTCC U65 2018"]
[Site "Walbrzych"]
[Date "2018.04.20"]
[Round "7"]
[White "Malmdin, Nils-Ake"]
[Black "Jorgensen, Brian Jorgen"]
[Result "0-1"]
[ECO "B12"]
[WhiteElo "2154"]
[BlackElo "2255"]
[Annotator "NA"]
[PlyCount "53"]
[EventDate "2018.??.??"]
[EventCountry "POL"]
[SourceTitle "playchess.com"]
[Source "ChessBase"]
[SourceQuality "1"]
[WhiteTeam "Sweden"]
[BlackTeam "Denmark"]
[WhiteTeamCountry "SWE"]
[BlackTeamCountry "DEN"]
[TimeControl "40/5400+30:1800+30"]

1. e4 {[%emt 0:00:00]} c6 {[%emt 0:00:06]} 2. d4 {[%emt 0:00:04]} d5 {[%emt 0:00:07]} 3. e5 {[%emt 0:00:23]} Bf5 {[%emt 0:00:09]} 4. Nf3 {[%emt 0:00:52]} e6 {[%emt 0:00:11]} 5. Be2 {[%emt 0:00:32]} Nd7 {[%emt 0:00:24]} 6. O-O {[%emt 0:01:04]} Ne7 {[%emt 0:00:26]} 7. Nbd2 {[%emt 0:03:03]} h6 {[%emt 0:07:18]} 8. c3 {[%emt 0:02:09]} g5 {[%emt 0:05:16] LiveBook: 13 Games} 9. b4 {[%emt 0:07:36]} a5 10. b5 {[%emt 0:08:37]} c5 {[%emt 0:03:59]} 11. dxc5 {[%emt 0:05:10]} Nxc5 {[%emt 0:00:31]} 12. Ba3 {[%emt 0:01:02]} Rc8 {[%emt 0:01:28]} 13. Nd4 {[%emt 0:15:14]} Bg7 {[%emt 0:08:54]} 14. N2f3 $11 {[%emt 0:17:16]} (14. Nxf5 $14 Nxf5 15. Bg4) 14... Be4 {[%emt 0:21:29]} 15. Bb2 {[%emt 0:13:01]} O-O {[%emt 0:12:16]} 16. h3 {[%emt 0:01:58]} Ng6 {[%emt 0:01:32]} 17. Re1 {[%emt 0:02:28]} Nxe5 {[%emt 0:04:27]} 18. Nxe5 {[%emt 0:00:37]} Bxe5 {[%emt 0:00:09]} 19. Bf1 {[%emt 0:00:13]} Bg7 {[%emt 0:00:40]} 20. Rc1 {[%emt 0:01:03]} Re8 {[%emt 0:01:53]} 21. Ba1 {[%emt 0:02:27]} Qb6 {[%emt 0:01:52]} 22. Nf3 {[%emt 0:03:08]} Bf5 {[%emt 0:03:36]} 23. Nd4 {[%emt 0:03:08]} Bg6 {[%emt 0:00:55]} 24. Qf3 {[%emt 0:03:19]} Ne4 {[%emt 0:03:35]} 25. Qe3 {[%emt 0:00:52]} Nd6 {[%emt 0:04:12]} 26. a4 {[%emt 0:01:09]} Nc4 {[%emt 0:00:45]} 27. Nb3 0-1

[Event "ESTCC U65 2018"]
[Site "Walbrzych"]
[Date "2018.04.20"]
[Round "7"]
[White "Holst, Per"]
[Black "Hammar, Bengt"]
[Result "0-1"]
[ECO "E81"]
[WhiteElo "2140"]
[BlackElo "2133"]
[Annotator "NA"]
[PlyCount "90"]
[EventDate "2018.??.??"]
[EventCountry "POL"]
[SourceTitle "playchess.com"]
[Source "ChessBase"]
[SourceQuality "1"]
[WhiteTeam "Denmark"]
[BlackTeam "Sweden"]
[WhiteTeamCountry "DEN"]
[BlackTeamCountry "SWE"]
[TimeControl "40/5400+30:1800+30"]

1. d4 {[%emt 0:00:00]} Nf6 {[%emt 0:00:44]} 2. c4 {[%emt 0:00:00]} g6 {[%emt 0:00:40]} 3. Nc3 {[%emt 0:00:00]} Bg7 {[%emt 0:01:49]} 4. e4 {[%emt 0:00:00]} d6 {[%emt 0:00:15]} 5. f3 {[%emt 0:00:09]} O-O {[%emt 0:00:51]} 6. Be3 {[%emt 0:00:08]} c6 {[%emt 0:03:31]} 7. Bd3 {[%emt 0:00:48]} a6 {[%emt 0:03:34]} 8. Nge2 {[%emt 0:00:42]} b5 {[%emt 0:01:38]} 9. O-O {[%emt 0:02:42]} Nbd7 {[%emt 0:04:43]} 10. b3 {[%emt 0:17:58]} e5 {[%emt 0:04:50]} 11. d5 {[%emt 0:00:50]} cxd5 {[%emt 0:00:34]} 12. cxd5 {[%emt 0:00:10] LiveBook: 5 Games} Nc5 {[%emt 0:00:57]} 13. Bc2 {[%emt 0:01:47]} b4 {[%emt 0:01:03]} 14. Na4 {[%emt 0:00:11]} Nxa4 {[%emt 0:00:44]} 15. bxa4 {[%emt 0:00:11]} Nd7 {[%emt 0:01:46]} 16. a3 {[%emt 0:00:49]} bxa3 {[%emt 0:02:24]} 17. Rxa3 {[%emt 0:04:21]} f5 {[%emt 0:00:31]} 18. exf5 {[%emt 0:02:06]} gxf5 {[%emt 0:00:13]} 19. f4 {[%emt 0:00:10]} Nb6 {[%emt 0:10:50]} 20. Bb3 {[%emt 0:06:00]} a5 {[%emt 0:01:31]} 21. Rf3 {[%emt 0:11:12]} Ba6 {[%emt 0:03:43]} 22. Rh3 {[%emt 0:05:54]} Bxe2 {[%emt 0:02:52]} 23. Qxe2 {[%emt 0:00:09]} Nd7 {[%emt 0:00:18]} 24. fxe5 {[%emt 0:01:57]} Bxe5 {[%emt 0:00:25]} 25. Bc2 {[%emt 0:01:00]} Rf7 {[%emt 0:02:11]} 26. Bxf5 {[%emt 0:02:55]} Kh8 {[%emt 0:01:57]} 27. Bc2 {[%emt 0:07:23]} Qe7 {[%emt 0:04:59]} 28. Rf3 {[%emt 0:08:53]} Rxf3 {[%emt 0:01:57]} 29. gxf3 {[%emt 0:00:58]} Qh4 {[%emt 0:02:12]} 30. f4 {[%emt 0:06:54]} Rg8+ {[%emt 0:02:31]} 31. Kh1 {[%emt 0:03:46]} Bxf4 {[%emt 0:02:48]} 32. Bxf4 {[%emt 0:02:08]} Qxf4 {[%emt 0:00:14]} 33. Rf3 {[%emt 0:04:07]} Qg4 {[%emt 0:10:48]} 34. Qf2 {[%emt 0:01:41]} Qg5 {[%emt 0:05:20]} 35. Qd4+ {[%emt 0:03:13]} Ne5 {[%emt 0:00:37]} 36. Rg3 {[%emt 0:00:16]} Qc1+ {[%emt 0:01:52]} 37. Bd1 {[%emt 0:00:33]} Rf8 {[%emt 0:05:13]} 38. Kg2 {[%emt 0:04:14]} Qh6 {[%emt 0:02:58]} 39. Be2 {[%emt 0:00:35]} Qf6 {[%emt 0:01:42]} 40. Qe3 {[%emt 0:00:00]} Ng6 {[%emt 0:02:29]} 41. Qc3 {[%emt 0:11:51]} Nf4+ {[%emt 0:04:11]} 42. Kf1 {[%emt 0:05:13]} Nxd5+ $15 {[%emt 0:00:11]} ({Black should try} 42... Qxc3 $19 43. Rxc3 Nxd5+ 44. Rf3 Kg7 45. Rxf8 Kxf8) 43. Qxf6+ {[%emt 0:00:12]} Rxf6+ {[%emt 0:00:54]} 44. Ke1 {[%emt 0:00:39]} Nf4 {[%emt 0:01:30]} 45. Rg4 {[%emt 0:05:16]} h5 {[%emt 0:04:22]} 0-1

[Event "ESTCC U65 2018"]
[Site "Walbrzych"]
[Date "2018.04.20"]
[Round "7"]
[White "Kradolfer, Georg"]
[Black "White, Alastair F"]
[Result "1-0"]
[ECO "A22"]
[WhiteElo "2084"]
[BlackElo "2069"]
[Annotator "NA"]
[PlyCount "137"]
[EventDate "2018.??.??"]
[EventCountry "POL"]
[SourceTitle "playchess.com"]
[Source "ChessBase"]
[SourceQuality "1"]
[WhiteTeam "Switzerland"]
[BlackTeam "Scotland"]
[WhiteTeamCountry "SUI"]
[BlackTeamCountry "SCO"]
[TimeControl "40/5400+30:1800+30"]

1. c4 {[%emt 0:00:00]} e5 {[%emt 0:00:11]} 2. Nc3 {[%emt 0:00:00]} Nf6 {[%emt 0:00:13]} 3. g3 {[%emt 0:00:00]} d5 {[%emt 0:00:18]} 4. cxd5 {[%emt 0:00:05]} Nxd5 {[%emt 0:00:07]} 5. Bg2 {[%emt 0:00:23]} Nb6 {[%emt 0:00:11]} 6. Nf3 {[%emt 0:01:36]} Nc6 {[%emt 0:00:09]} 7. d3 {[%emt 0:00:53]} Be7 {[%emt 0:00:20]} 8. O-O {[%emt 0:00:22]} O-O {[%emt 0:00:20]} 9. Be3 {[%emt 0:01:52]} Be6 {[%emt 0:00:41]} 10. a3 {[%emt 0:00:45]} Nd5 {[%emt 0:06:18]} 11. Nxd5 {[%emt 0:04:41]} Bxd5 {[%emt 0:01:13]} 12. Rc1 {[%emt 0:03:49]} Re8 {[%emt 0:12:36]} 13. b4 {[%emt 0:07:36] A29: English Opening: Four Knights Variation with 4 g3} (13. Qa4 a6 14. Rc3 Bf6 15. Rc5 Ne7 16. Rfc1 c6 17. Bg5 Bxg5 18. Nxg5 Bxg2 19. Kxg2 Nf5 20. Qg4 Nd6 {½-½ (40) Karjakin,S (2766)-Topalov,V (2785) Khanty-Mansiysk 2014}) 13... a5 {[%emt 0:00:34]} 14. b5 {[%emt 0:14:36]} Nd4 {[%emt 0:00:46]} 15. Nxd4 $146 {[%emt 0:01:51]} ({Predecessor:} 15. Bxd4 exd4 16. Qa4 Bf6 17. Rfe1 c6 18. bxc6 Bxc6 19. Qb3 a4 20. Qb2 Qd7 {½-½ (51) Shvets,G (2034)-Mucha,J (2064) ICCF email 2015}) 15... Bxg2 {[%emt 0:02:32]} 16. Kxg2 {[%emt 0:07:50]} exd4 {[%emt 0:00:23]} 17. Bf4 {[%emt 0:00:44]} Bxa3 {[%emt 0:00:38]} 18. Rxc7 {[%emt 0:01:43]} Bd6 {[%emt 0:17:57]} 19. Bxd6 {[%emt 0:04:10]} Qxd6 {[%emt 0:00:07]} 20. Qc2 {[%emt 0:03:58]} Qe6 {[%emt 0:18:33]} 21. Rc1 {[%emt 0:15:11]} a4 {[%emt 0:04:41]} 22. Qc4 {[%emt 0:08:06]} Qxc4 {[%emt 0:10:35]} 23. R7xc4 {[%emt 0:00:33]} a3 {[%emt 0:01:19]} 24. Kf3 {[%emt 0:03:53]} Ra5 {[%emt 0:03:07]} 25. Ra1 {[%emt 0:02:15]} Rd8 {[%emt 0:07:08]} 26. Rb4 {[%emt 0:00:46]} f5 {[%emt 0:01:48]} 27. Rb3 {[%emt 0:01:28]} Rda8 {[%emt 0:01:26]} 28. Kf4 {[%emt 0:05:22]} g6 {[%emt 0:00:57]} 29. Ra2 {[%emt 0:00:24]} Kf7 {[%emt 0:00:31]} 30. e3 {[%emt 0:02:03]} Ra4 {[%emt 0:01:43]} 31. e4 {[%emt 0:01:58]} fxe4 {[%emt 0:00:28]} 32. dxe4 {[%emt 0:02:14]} Ke6 {[%emt 0:00:52]} 33. b6 {[%emt 0:00:32]} R8a5 {[%emt 0:00:49]} 34. h4 {[%emt 0:02:27]} h6 {[%emt 0:00:25]} 35. Kf3 {[%emt 0:01:03]} g5 {[%emt 0:00:30]} (35... Ke5 $17 36. g4 g5) 36. hxg5 {[%emt 0:00:21]} hxg5 {[%emt 0:00:05]} 37. Ke2 {[%emt 0:00:43]} g4 {[%emt 0:00:25]} 38. f4 {[%emt 0:00:52]} gxf3+ {[%emt 0:00:06]} 39. Rxf3 {[%emt 0:00:49]} Rb5 {[%emt 0:01:04]} (39... Ra6 $17 40. Rb3 Ra8) 40. Rfxa3 {[%emt 0:00:00]} Rxa3 {[%emt 0:00:16]} 41. Rxa3 {[%emt 0:01:08]} Rxb6 {[%emt 0:00:40]} 42. Kd3 {[%emt 0:01:57]} Rd6 {[%emt 0:00:35]} 43. Rb3 {[%emt 0:01:31]} Rd7 {[%emt 0:00:40]} 44. Rb5 {[%emt 0:01:34]} Kf6 {[%emt 0:00:53]} 45. Rf5+ {[%emt 0:01:57]} Ke6 {[%emt 0:02:36] [#]} 46. g4 $1 {[%emt 0:00:20]} Rd8 {[%emt 0:01:19]} 47. Rb5 {[%emt 0:00:36]} (47. g5 $16) 47... Rd7 $16 {[%emt 0:01:07]} (47... Kf6 $1 $11) 48. g5 {[%emt 0:00:15]} Kf7 {[%emt 0:02:14]} 49. Rd5 {[%emt 0:02:51]} Rc7 {[%emt 0:00:16]} 50. Kxd4 {[%emt 0:02:43]} Kg6 {[%emt 0:00:07]} 51. Ke5 {[%emt 0:02:49]} Rc1 {[%emt 0:01:48]} 52. Ke6 {[%emt 0:05:56]} Rc4 {[%emt 0:06:22]} 53. e5 {[%emt 0:01:34]} Kxg5 {[%emt 0:04:30]} 54. Kd7 {[%emt 0:00:43]} Re4 {[%emt 0:00:42]} 55. e6+ {[%emt 0:00:51]} Kf6 {[%emt 0:00:06]} 56. Rd1 {[%emt 0:00:13]} b5 {[%emt 0:02:06]} 57. Rf1+ {[%emt 0:00:39]} Ke5 {[%emt 0:00:08]} 58. e7 {[%emt 0:00:37]} Kd4 {[%emt 0:00:08]} 59. Rf4 {[%emt 0:03:01]} Rxf4 {[%emt 0:00:07]} 60. e8=Q {[%emt 0:00:08]} Re4 {[%emt 0:00:57]} 61. Qh5 {[%emt 0:02:04]} Re5 {[%emt 0:03:22]} 62. Qd1+ {[%emt 0:00:29]} Kc4 {[%emt 0:00:51]} 63. Qc2+ {[%emt 0:00:34]} Kd4 {[%emt 0:00:17]} 64. Qb2+ {[%emt 0:00:44]} Ke4 {[%emt 0:00:18]} 65. Kd6 {[%emt 0:00:48]} Rg5 {[%emt 0:02:07]} 66. Qf6 {[%emt 0:01:14]} Rf5 {[%emt 0:01:47]} 67. Qh4+ {[%emt 0:01:10]} Rf4 {[%emt 0:02:40]} 68. Qe1+ {[%emt 0:00:13]} Kd3 {[%emt 0:02:14]} 69. Qb1+ {[%emt 0:00:14] Ke4 Kd5+} 1-0

[Event "ESTCC U65 2018"]
[Site "Walbrzych"]
[Date "2018.04.20"]
[Round "7"]
[White "Scrimgour, Alan"]
[Black "Hohler, Peter"]
[Result "1/2-1/2"]
[ECO "C24"]
[WhiteElo "2083"]
[BlackElo "2076"]
[Annotator "NA"]
[PlyCount "33"]
[EventDate "2018.??.??"]
[EventCountry "POL"]
[SourceTitle "playchess.com"]
[Source "ChessBase"]
[SourceQuality "1"]
[WhiteTeam "Scotland"]
[BlackTeam "Switzerland"]
[WhiteTeamCountry "SCO"]
[BlackTeamCountry "SUI"]
[TimeControl "40/5400+30:1800+30"]

1. e4 {[%emt 0:00:00]} e5 {[%emt 0:00:21]} 2. f4 {[%emt 0:00:00]} exf4 {[%emt 0:00:19]} 3. Bc4 {[%emt 0:00:00]} Nf6 {[%emt 0:00:34]} 4. Nc3 {[%emt 0:00:19]} c6 {[%emt 0:00:37]} 5. d4 {[%emt 0:01:18]} d5 {[%emt 0:01:12]} 6. exd5 {[%emt 0:00:30]} cxd5 {[%emt 0:00:08]} 7. Bb3 {[%emt 0:00:12]} Nc6 {[%emt 0:04:33]} 8. Bxf4 {[%emt 0:06:53]} Bb4 {[%emt 0:13:03]} 9. Nge2 {[%emt 0:07:50]} Ne4 {[%emt 0:09:11]} 10. O-O {[%emt 0:07:15]} Bxc3 $1 {[%emt 0:03:12]} 11. Nxc3 $11 {[%emt 0:04:21]} Nxc3 {[%emt 0:00:31]} 12. bxc3 {[%emt 0:00:07]} O-O {[%emt 0:00:36]} 13. Qh5 {[%emt 0:03:07]} Be6 {[%emt 0:00:50]} 14. Rae1 {[%emt 0:02:23]} Qd7 {[%emt 0:18:31]} 15. Re3 {[%emt 0:11:15]} Rad8 {[%emt 0:05:03]} 16. Ba4 {[%emt 0:06:11]} f6 {[%emt 0:07:10]} 17. Qe2 {[%emt 0:08:40]} 1/2-1/2

[Event "ESTCC U65 2018"]
[Site "Walbrzych"]
[Date "2018.04.20"]
[Round "7"]
[White "Koskinen, Veikko"]
[Black "Vehkalahti, Veli"]
[Result "1/2-1/2"]
[ECO "B07"]
[WhiteElo "2012"]
[BlackElo "1880"]
[Annotator "NA"]
[PlyCount "39"]
[EventDate "2018.??.??"]
[EventCountry "POL"]
[SourceTitle "playchess.com"]
[Source "ChessBase"]
[SourceQuality "1"]
[WhiteTeam "Finland"]
[BlackTeam "Finland"]
[WhiteTeamCountry "FIN"]
[BlackTeamCountry "FIN"]
[TimeControl "40/5400+30:1800+30"]

1. e4 {[%emt 0:00:00]} d6 {[%emt 0:00:35]} 2. d4 {[%emt 0:03:01]} Nf6 {[%emt 0:00:11]} 3. Nc3 {[%emt 0:00:11]} Nbd7 {[%emt 0:01:54]} 4. Be3 {[%emt 0:01:03]} e5 {[%emt 0:02:22]} 5. Nf3 {[%emt 0:15:43] LiveBook: 14 Games} Be7 {[%emt 0:01:09]} 6. h3 {[%emt 0:02:20]} c6 {[%emt 0:00:35]} 7. a4 {[%emt 0:03:54]} Qc7 {[%emt 0:03:40]} 8. Be2 {[%emt 0:03:55]} O-O {[%emt 0:00:12]} 9. O-O {[%emt 0:00:04]} Re8 {[%emt 0:04:37]} 10. Nd2 {[%emt 0:09:14]} a6 {[%emt 0:03:39]} 11. a5 {[%emt 0:01:32]} exd4 {[%emt 0:03:07]} 12. Bxd4 {[%emt 0:00:17]} c5 {[%emt 0:02:15]} 13. Be3 {[%emt 0:00:54]} b5 {[%emt 0:01:47]} 14. axb6 {[%emt 0:00:44]} Nxb6 {[%emt 0:00:42]} 15. Bf4 {[%emt 0:04:35]} Bb7 $14 {[%emt 0:04:56]} 16. Bf3 {[%emt 0:07:17]} Nfd7 {[%emt 0:03:23]} 17. Nd5 {[%emt 0:04:37]} Bxd5 {[%emt 0:07:32]} 18. exd5 {[%emt 0:00:27]} Bf6 {[%emt 0:02:54]} 19. c3 {[%emt 0:07:15]} Be5 {[%emt 0:02:33]} 20. Bxe5 {[%emt 0:06:01]} 1/2-1/2

[Event "ESTCC U65 2018"]
[Site "Walbrzych"]
[Date "2018.04.20"]
[Round "7"]
[White "Carlsten, Peter"]
[Black "Olesen, Poul Erik Norgaard"]
[Result "1-0"]
[ECO "B06"]
[WhiteElo "2010"]
[BlackElo "2005"]
[Annotator "NA"]
[PlyCount "54"]
[EventDate "2018.??.??"]
[EventCountry "POL"]
[SourceTitle "playchess.com"]
[Source "ChessBase"]
[SourceQuality "1"]
[WhiteTeam "Sweden"]
[BlackTeam "Denmark"]
[WhiteTeamCountry "SWE"]
[BlackTeamCountry "DEN"]
[TimeControl "40/5400+30:1800+30"]

1. e4 {[%emt 0:00:14]} g6 {[%emt 0:00:09]} 2. d4 {[%emt 0:00:24]} Bg7 {[%emt 0:00:08]} 3. Nc3 {[%emt 0:00:17]} d6 {[%emt 0:00:33]} 4. Be3 {[%emt 0:00:11]} a6 {[%emt 0:00:55]} 5. Qd2 {[%emt 0:00:16]} Nd7 {[%emt 0:00:58]} 6. f3 {[%emt 0:00:40]} c6 {[%emt 0:01:46]} 7. g4 {[%emt 0:02:52]} b5 {[%emt 0:04:43]} 8. h4 {[%emt 0:02:23]} Qc7 {[%emt 0:08:32]} 9. h5 {[%emt 0:01:32]} Nb6 {[%emt 0:02:43]} 10. hxg6 {[%emt 0:03:53]} hxg6 {[%emt 0:05:34]} 11. Rxh8 {[%emt 0:00:25]} Bxh8 {[%emt 0:00:10]} 12. b3 {[%emt 0:04:49]} Bb7 {[%emt 0:15:06]} 13. a4 {[%emt 0:02:35]} b4 {[%emt 0:07:02]} 14. Nd1 {[%emt 0:01:21]} a5 {[%emt 0:03:50]} 15. Rc1 {[%emt 0:02:02]} Nf6 {[%emt 0:11:03]} 16. c3 {[%emt 0:01:21]} bxc3 $16 {[%emt 0:00:58]} 17. Nxc3 {[%emt 0:00:17]} Nfd7 {[%emt 0:05:01]} 18. Nh3 {[%emt 0:06:46]} e5 {[%emt 0:02:33]} 19. d5 {[%emt 0:03:31]} Nc5 {[%emt 0:03:52]} 20. dxc6 {[%emt 0:04:58]} Bxc6 {[%emt 0:11:11]} 21. Nb5 {[%emt 0:00:51]} Bxb5 {[%emt 0:00:52]} 22. Bxb5+ {[%emt 0:00:11]} Ke7 {[%emt 0:02:34]} 23. Qc3 {[%emt 0:02:42]} Rc8 {[%emt 0:02:44]} 24. Qxa5 {[%emt 0:01:02]} Nbd7 {[%emt 0:01:33]} 25. Qc3 {[%emt 0:01:42]} Bg7 {[%emt 0:01:21]} 26. b4 {[%emt 0:06:45]} Rh8 {[%emt 0:02:12]} 27. Nf2 {[%emt 0:01:29]} Bf8 1-0

[Event "ESTCC U65 2018"]
[Site "Walbrzych"]
[Date "2018.04.20"]
[Round "7"]
[White "Rantanen, Veikko"]
[Black "Patola, Eero"]
[Result "1/2-1/2"]
[ECO "A38"]
[WhiteElo "2007"]
[BlackElo "1823"]
[Annotator "NA"]
[PlyCount "52"]
[EventDate "2018.??.??"]
[EventCountry "POL"]
[SourceTitle "playchess.com"]
[Source "ChessBase"]
[SourceQuality "1"]
[WhiteTeam "Finland"]
[BlackTeam "Finland"]
[WhiteTeamCountry "FIN"]
[BlackTeamCountry "FIN"]
[TimeControl "40/5400+30:1800+30"]

1. c4 c5 2. Nc3 Nc6 3. Nf3 Nf6 4. g3 g6 5. Bg2 Bg7 6. O-O O-O 7. e3 d5 8. cxd5 {A38: Symmetrical English vs ...g6: 4 Bg2 Bg7 5 Nf3 Nf6} Nb4 (8... Nxd5 9. Nxd5 Qxd5 10. d4 Rd8 11. Qa4 Bd7 12. Qa3 cxd4 13. Nxd4 Qe5 14. Bd2 Nxd4 15. exd4 Qxd4 16. Bc3 Qa4 17. Qxe7 Bxc3 18. bxc3 {½-½ (72) Dimakiling,O (2404)-Li,B (2364) Hong Kong 2016}) 9. d4 cxd4 10. Nxd4 Nbxd5 11. Nxd5 Nxd5 12. Qb3 $146 ({Predecessor:} 12. e4 Nf6 13. Nb5 Bg4 14. f3 Be6 15. Rb1 Qb6+ 16. Kh1 Rad8 17. Qe2 Bc4 {1-0 (17) Pohl,M-Becker,N Wilhelmshaven 1998}) 12... e6 13. Rd1 Qb6 14. Qxb6 Nxb6 15. Bd2 Bxd4 16. exd4 Rd8 17. Bh6 f6 18. h4 Kf7 19. Rac1 $14 Nd5 20. a3 Ke7 21. Bxd5 Rxd5 22. Rc7+ Rd7 23. Rdc1 Kd8 24. Bf4 b6 25. Rxd7+ Bxd7 26. Kf1 Rc8 1/2-1/2

[Event "ESTCC U65 2018"]
[Site "Walbrzych"]
[Date "2018.04.20"]
[Round "7"]
[White "Lundgren, Ulf"]
[Black "Pushkov, Nikolai"]
[Result "1/2-1/2"]
[ECO "E34"]
[WhiteElo "1989"]
[BlackElo "2304"]
[Annotator "NA"]
[PlyCount "67"]
[EventDate "2018.??.??"]
[EventCountry "POL"]
[SourceTitle "playchess.com"]
[Source "ChessBase"]
[SourceQuality "1"]
[WhiteTeam "Sweden"]
[BlackTeam "Russia"]
[WhiteTeamCountry "SWE"]
[BlackTeamCountry "RUS"]
[TimeControl "40/5400+30:1800+30"]

1. d4 {[%emt 0:00:00]} Nf6 {[%emt 0:00:11]} 2. c4 {[%emt 0:00:00]} e6 {[%emt 0:00:09]} 3. Nc3 {[%emt 0:00:00]} Bb4 {[%emt 0:00:34]} 4. Qc2 {[%emt 0:03:13]} d5 {[%emt 0:01:01]} 5. Bg5 {[%emt 0:01:00]} h6 {[%emt 0:00:18]} 6. Bxf6 {[%emt 0:00:10]} Qxf6 {[%emt 0:00:03]} 7. e3 {[%emt 0:00:11]} O-O {[%emt 0:01:43]} 8. Nf3 {[%emt 0:00:09]} c5 {[%emt 0:07:00] D38: Queen's Gambit Declined: Ragozin Defence (4 Nf3 Bb4)} (8... dxc4 9. Bxc4 c5 10. O-O cxd4 11. Nxd4 {½-½ (11) Amin,B (2689)-Leko,P (2691) Riadh 2017}) 9. a3 {[%emt 0:00:25]} cxd4 {[%emt 0:04:55]} 10. axb4 {[%emt 0:06:28]} dxc3 {[%emt 0:00:17]} 11. Qxc3 {[%emt 0:00:41]} Qxc3+ {[%emt 0:12:41]} 12. bxc3 {[%emt 0:00:18]} dxc4 {[%emt 0:00:02]} 13. Bxc4 {[%emt 0:06:08]} Bd7 {[%emt 0:00:36]} 14. Be2 $146 {[%emt 0:00:18]} ({Predecessor:} 14. Ne5 Rc8 15. Ra3 Be8 16. Bd3 {0-1 (76) Gasparian,T (2208)-Mkrtchian,L (2401) Yerevan 2017}) 14... Rc8 {[%emt 0:07:06]} 15. c4 {[%emt 0:04:32]} Na6 {[%emt 0:05:58]} 16. Rb1 {[%emt 0:03:05]} f6 {[%emt 0:01:16]} 17. O-O {[%emt 0:02:52]} Kf7 {[%emt 0:02:08]} 18. Rfc1 {[%emt 0:03:37]} e5 {[%emt 0:04:22]} 19. Nd2 {[%emt 0:06:23]} Nc7 {[%emt 0:02:26]} 20. Ne4 {[%emt 0:08:30]} Ke7 {[%emt 0:01:36]} 21. Nc5 {[%emt 0:04:09]} Bf5 {[%emt 0:10:16]} 22. e4 {[%emt 0:06:18]} b6 {[%emt 0:01:43]} 23. exf5 {[%emt 0:01:25]} bxc5 {[%emt 0:00:03]} 24. b5 {[%emt 0:05:23]} Ne8 {[%emt 0:03:20]} 25. Bf3 {[%emt 0:01:57]} Rab8 {[%emt 0:01:08]} 26. Ra1 {[%emt 0:01:24]} Rc7 {[%emt 0:00:06]} 27. Bd5 {[%emt 0:00:39]} Nd6 {[%emt 0:04:17]} 28. g4 {[%emt 0:00:29]} Rd8 {[%emt 0:01:34]} 29. Rd1 {[%emt 0:02:25]} Nc8 {[%emt 0:00:17]} 30. Be6 {[%emt 0:03:07]} Rxd1+ {[%emt 0:00:28]} 31. Rxd1 $2 {[%emt 0:00:06]} Nd6 {[%emt 0:04:12]} 32. Bd5 {[%emt 0:02:43]} (32. Ra1 $16) 32... Nc8 {[%emt 0:00:42]} 33. Be6 {[%emt 0:00:10]} (33. Kg2 $18) 33... Nd6 {[%emt 0:01:50]} 34. Bd5 $11 {[%emt 0:00:07]} 1/2-1/2